[Event "Bruges Masters 2019"]
[Site "Bruges"]
[Date "2019.08.11"]
[Round "2.9"]
[White "Dgebuadze, Alexandre"]
[Black "Todts, Benny"]
[Result "1/2-1/2"]
[ECO "C00"]
[WhiteElo "2495"]
[BlackElo "1932"]
[Annotator "ChessBase"]
[PlyCount "191"]
[EventDate "2019.08.11"]
[EventType "swiss"]
[EventCountry "BEL"]
[SourceTitle "playchess.com"]
[Source "ChessBase"]
[SourceQuality "1"]
[TimeControl "5400+30"]

1. e4 {[%emt 0:00:00]} e6 {[%emt 0:00:00]} 2. d3 {[%emt 0:00:00]} d5 {[%emt 0:00:00]} 3. Qe2 {[%emt 0:00:00]} dxe4 {[%emt 0:01:44]} 4. dxe4 {[%emt 0:00:45]} Nc6 {[%emt 0:00:41]} 5. c3 {[%emt 0:04:39]} Nf6 {[%emt 0:02:26]} 6. e5 {[%emt 0:03:05]} Nd5 {[%emt 0:00:29]} 7. Nf3 {[%emt 0:00:42]} Bc5 {[%emt 0:02:02]} 8. Nbd2 {[%emt 0:03:49]} O-O {[%emt 0:03:24]} 9. Ne4 {[%emt 0:00:48]} Be7 {[%emt 0:01:15]} 10. Bd2 {[%emt 0:02:40]} f6 {[%emt 0:03:44]} 11. exf6 {[%emt 0:03:51]} Bxf6 {[%emt 0:01:33]} 12. g3 {[%emt 0:11:13]} e5 {[%emt 0:08:07]} 13. Bg2 {[%emt 0:01:46]} Bg4 {[%emt 0:10:11]} 14. Qc4 {[%emt 0:02:51]} Kh8 {[%emt 0:01:15]} 15. O-O-O {[%emt 0:06:49]} Nb6 {[%emt 0:01:50]} 16. Qb3 {[%emt 0:06:11]} Qe8 {[%emt 0:06:29]} 17. h3 {[%emt 0:04:40]} Be6 {[%emt 0:02:18]} 18. Qc2 {[%emt 0:00:06]} Qg6 {[%emt 0:03:53]} 19. Rhe1 {[%emt 0:07:57]} Be7 {[%emt 0:08:39]} 20. Bg5 {[%emt 0:03:24]} Bxh3 {[%emt 0:07:37]} 21. Bxh3 {[%emt 0:07:12]} Rxf3 {[%emt 0:00:57]} 22. Bxe7 {[%emt 0:03:53]} Nxe7 {[%emt 0:02:30]} 23. Bg2 {[%emt 0:01:46]} Rf7 {[%emt 0:01:28]} 24. Rh1 {[%emt 0:01:09]} Raf8 {[%emt 0:01:10]} 25. Rh2 {[%emt 0:04:07]} Nc4 {[%emt 0:09:46]} 26. Bf1 {[%emt 0:07:47]} Ne3 {[%emt 0:03:46]} 27. fxe3 {[%emt 0:00:48]} Rxf1 {[%emt 0:01:14]} 28. Qd3 {[%emt 0:01:58]} Rxd1+ {[%emt 0:02:19]} 29. Kxd1 {[%emt 0:00:07]} Nf5 {[%emt 0:01:32]} 30. Rf2 {[%emt 0:03:25]} Re8 {[%emt 0:01:33]} 31. Nd2 {[%emt 0:05:37]} Qg4+ {[%emt 0:01:41]} 32. Kc1 {[%emt 0:01:28]} Nxg3 {[%emt 0:01:39]} 33. e4 {[%emt 0:01:15]} Nh5 {[%emt 0:01:28]} 34. Qb5 {[%emt 0:00:10]} Rd8 {[%emt 0:02:43]} 35. Qd5 {[%emt 0:00:56]} Qg5 {[%emt 0:01:24]} 36. Rf5 {[%emt 0:00:29]} Qe7 {[%emt 0:04:32]} 37. Qxe5 {[%emt 0:00:31]} Qxe5 {[%emt 0:00:20]} 38. Rxe5 {[%emt 0:00:06]} Nf6 {[%emt 0:00:11]} 39. Rf5 {[%emt 0:00:11]} Kg8 {[%emt 0:00:35]} 40. Kc2 {[%emt 0:00:19]} Kf7 {[%emt 0:00:32]} 41. e5 {[%emt 0:00:23]} Ke6 {[%emt 0:00:10]} 42. Rf2 {[%emt 0:00:52]} Kxe5 {[%emt 0:00:23]} 43. Nf3+ {[%emt 0:00:16]} Ke4 {[%emt 0:00:46]} 44. Nd4 {[%emt 0:00:56]} c5 {[%emt 0:00:43]} 45. Ne6 {[%emt 0:00:06]} Rd6 {[%emt 0:00:40]} 46. Nxg7 {[%emt 0:00:26]} c4 {[%emt 0:00:33]} 47. Nf5 {[%emt 0:00:11]} Rd3 {[%emt 0:00:26]} 48. Ng3+ {[%emt 0:01:07]} Ke5 {[%emt 0:00:33]} 49. Nf1 {[%emt 0:00:15]} Ng4 {[%emt 0:00:28]} 50. Rf7 {[%emt 0:00:10]} h5 {[%emt 0:00:36]} 51. b3 {[%emt 0:01:11]} Ne3+ {[%emt 0:00:40]} 52. Nxe3 {[%emt 0:00:15]} Rxe3 {[%emt 0:00:07]} 53. bxc4 {[%emt 0:00:18]} h4 {[%emt 0:00:15]} 54. Rxb7 {[%emt 0:00:31]} h3 {[%emt 0:00:22]} 55. Rh7 {[%emt 0:00:41]} Rg3 {[%emt 0:00:27]} 56. c5 {[%emt 0:00:23]} Kd5 {[%emt 0:00:19]} 57. Kb3 {[%emt 0:00:21]} Kxc5 {[%emt 0:00:20]} 58. Rxa7 {[%emt 0:00:10]} h2 {[%emt 0:01:10]} 59. Rh7 {[%emt 0:00:05]} Rg2 {[%emt 0:00:04]} 60. a4 {[%emt 0:00:29]} Rd2 {[%emt 0:01:03]} 61. Rh6 {[%emt 0:00:40]} Re2 {[%emt 0:00:50]} 62. a5 {[%emt 0:00:11]} Kb5 {[%emt 0:00:08]} 63. a6 {[%emt 0:00:18]} h1=Q {[%emt 0:00:25]} 64. Rxh1 {[%emt 0:01:01]} Kxa6 {[%emt 0:00:06]} 65. Kc4 {[%emt 0:00:14]} Kb6 {[%emt 0:00:49]} 66. Rh6+ {[%emt 0:00:13]} Kc7 {[%emt 0:00:27]} 67. Kd5 {[%emt 0:00:11]} Rg2 {[%emt 0:00:28]} 68. Rh5 {[%emt 0:00:51]} Kb6 {[%emt 0:00:49]} 69. Rh6+ {[%emt 0:00:10]} Kc7 {[%emt 0:00:05]} 70. Re6 {[%emt 0:00:55]} Rg5+ {[%emt 0:00:46]} 71. Kc4 {[%emt 0:00:23]} Rg4+ {[%emt 0:00:22]} 72. Kb5 {[%emt 0:00:15]} Rg5+ {[%emt 0:00:10]} 73. Kb4 {[%emt 0:00:06]} Rg1 {[%emt 0:00:17]} 74. Rh6 {[%emt 0:00:18]} Rg5 {[%emt 0:00:28]} 75. Ra6 {[%emt 0:00:19]} Kb7 {[%emt 0:00:25]} 76. Rf6 {[%emt 0:00:07]} Rh5 {[%emt 0:00:11]} 77. c4 {[%emt 0:00:05]} Kc7 {[%emt 0:00:30]} 78. Rf4 {[%emt 0:00:17]} Kb7 {[%emt 0:00:15]} 79. c5 {[%emt 0:00:15]} Rh1 {[%emt 0:00:16]} 80. Kb5 {[%emt 0:00:12]} Rb1+ {[%emt 0:00:07]} 81. Kc4 {[%emt 0:00:12]} Rc1+ {[%emt 0:00:18]} 82. Kd5 {[%emt 0:00:06]} Rd1+ {[%emt 0:00:15]} 83. Rd4 {[%emt 0:00:04]} Rxd4+ {[%emt 0:00:14]} 84. Kxd4 {[%emt 0:00:03]} Kc6 {[%emt 0:00:17]} 85. Kc4 {[%emt 0:00:03]} Kc7 {[%emt 0:00:04]} 86. Kd5 {[%emt 0:00:04]} Kd7 {[%emt 0:00:07]} 87. c6+ {[%emt 0:00:05]} Kc7 {[%emt 0:00:03]} 88. Kc5 {[%emt 0:00:04]} Kc8 {[%emt 0:00:04]} 89. Kd6 {[%emt 0:00:04]} Kd8 {[%emt 0:00:05]} 90. Ke6 {[%emt 0:00:05]} Kc7 {[%emt 0:00:09]} 91. Kd5 {[%emt 0:00:04]} Kc8 {[%emt 0:00:15]} 92. Kc5 {[%emt 0:00:04]} Kc7 {[%emt 0:00:05]} 93. Kb5 {[%emt 0:00:02]} Kc8 {[%emt 0:00:10]} 94. Kb6 {[%emt 0:00:04]} Kb8 {[%emt 0:00:04]} 95. c7+ {[%emt 0:00:05]} Kc8 {[%emt 0:00:04]} 96. Kc6 {[%emt 0:12:14]} 1/2-1/2

[Event "Bruges Masters 2019"]
[Site "Bruges"]
[Date "2019.08.11"]
[Round "2.10"]
[White "Leenhouts, Koen"]
[Black "Goossens, Hanne"]
[Result "1-0"]
[ECO "E81"]
[WhiteElo "2426"]
[BlackElo "2134"]
[Annotator "NA"]
[PlyCount "45"]
[EventDate "2019.08.11"]
[EventType "swiss"]
[EventCountry "BEL"]
[SourceTitle "playchess.com"]
[Source "ChessBase"]
[SourceQuality "1"]
[TimeControl "5400+30"]

1. d4 {[%emt 0:00:00]} Nf6 {[%emt 0:00:00]} 2. c4 {[%emt 0:00:00]} g6 {[%emt 0:00:00]} 3. Nc3 {[%emt 0:00:00]} Bg7 {[%emt 0:00:00]} 4. e4 {[%emt 0:00:00]} d6 {[%emt 0:00:03]} 5. f3 {[%emt 0:00:00]} O-O {[%emt 0:01:17]} 6. Bg5 {[%emt 0:00:09]} c5 {[%emt 0:01:52]} 7. d5 {[%emt 0:00:08]} Qb6 {[%emt 0:06:07]} 8. Qd2 {[%emt 0:01:51]} e6 {[%emt 0:00:53]} 9. O-O-O {[%emt 0:03:22]} Re8 {[%emt 0:09:19]} 10. h4 {[%emt 0:06:34]} Nh5 {[%emt 0:12:07] [#]} (10... exd5 $16 11. Bxf6 (11. exd5 Nbd7 $14) 11... Bxf6) 11. Nge2 $1 {[%emt 0:00:40]} f5 $18 {[%emt 0:03:44]} (11... Nd7 $142 12. dxe6 fxe6) 12. g4 {[%emt 0:15:58]} Nf6 {[%emt 0:02:40]} 13. dxe6 {[%emt 0:02:17]} fxg4 {[%emt 0:02:08]} 14. Nd5 {[%emt 0:00:57]} Nxd5 {[%emt 0:03:07]} 15. exd5 {[%emt 0:00:19]} gxf3 {[%emt 0:03:06]} 16. Nc3 {[%emt 0:04:40]} Nc6 {[%emt 0:22:57]} 17. h5 {[%emt 0:00:41]} Ne5 {[%emt 0:03:37]} 18. hxg6 {[%emt 0:00:12]} hxg6 {[%emt 0:00:59]} 19. Qh2 {[%emt 0:02:38]} Bxe6 {[%emt 0:10:27]} 20. Qh7+ {[%emt 0:01:09]} Kf8 {[%emt 0:04:20]} 21. dxe6 {[%emt 0:00:09]} Rxe6 {[%emt 0:00:22]} 22. Bh6 {[%emt 0:00:20]} Qc7 {[%emt 0:01:34]} 23. Qh8+ {[%emt 0:00:07]} 1-0

[Event "Bruges Masters 2019"]
[Site "Bruges"]
[Date "2019.08.11"]
[Round "2.11"]
[White "Quesada Vera, Liordis"]
[Black "Keuning, Selwin"]
[Result "1/2-1/2"]
[ECO "A37"]
[WhiteElo "2386"]
[BlackElo "2078"]
[Annotator "NA"]
[PlyCount "206"]
[EventDate "2019.08.11"]
[EventType "swiss"]
[EventCountry "BEL"]
[SourceTitle "playchess.com"]
[Source "ChessBase"]
[SourceQuality "1"]
[TimeControl "5400+30"]

1. Nf3 {[%emt 0:00:00]} c5 {[%emt 0:00:00]} 2. c4 {[%emt 0:01:30]} Nc6 {[%emt 0:00:00]} 3. g3 {[%emt 0:00:08]} g6 {[%emt 0:00:00]} 4. Bg2 {[%emt 0:00:05]} Bg7 {[%emt 0:00:00]} 5. Nc3 {[%emt 0:00:11]} e6 {[%emt 0:00:12]} 6. d4 {[%emt 0:08:28]} Nxd4 {[%emt 0:04:26]} 7. Nxd4 {[%emt 0:00:57]} cxd4 {[%emt 0:00:42]} 8. Nb5 {[%emt 0:00:16]} Qb6 {[%emt 0:03:42]} 9. Qa4 {[%emt 0:05:23]} a6 {[%emt 0:07:34]} 10. e3 {[%emt 0:02:20]} d3 $11 {[%emt 0:04:47]} 11. O-O {[%emt 0:04:14]} Ne7 {[%emt 0:04:23]} 12. Nd4 {[%emt 0:26:44]} O-O {[%emt 0:11:47]} 13. Rd1 {[%emt 0:17:13]} d5 {[%emt 0:08:00]} 14. Qa3 {[%emt 0:02:49]} Re8 {[%emt 0:09:19]} 15. cxd5 {[%emt 0:10:52]} Nxd5 {[%emt 0:01:55]} 16. Rxd3 {[%emt 0:00:19]} Bd7 {[%emt 0:02:40]} 17. Bd2 {[%emt 0:00:38]} Rac8 {[%emt 0:04:42]} 18. Rd1 {[%emt 0:12:49]} Bf8 {[%emt 0:07:13]} 19. Qb3 {[%emt 0:01:47]} Qxb3 {[%emt 0:00:55]} 20. axb3 {[%emt 0:00:03]} b6 {[%emt 0:03:59]} 21. Bxd5 {[%emt 0:01:21]} exd5 {[%emt 0:00:17]} 22. Bc3 {[%emt 0:00:12]} b5 {[%emt 0:04:49]} 23. b4 {[%emt 0:01:51]} Be6 {[%emt 0:02:00]} 24. Ra1 {[%emt 0:00:04]} Ra8 {[%emt 0:00:56]} 25. Ra5 {[%emt 0:00:05]} Rec8 {[%emt 0:02:15]} 26. Rd1 {[%emt 0:00:21]} Rc4 {[%emt 0:01:51]} 27. Rda1 {[%emt 0:00:16]} Bxb4 {[%emt 0:02:11]} 28. Bxb4 {[%emt 0:00:07]} Rxb4 {[%emt 0:00:05]} 29. b3 {[%emt 0:00:05]} Rc8 {[%emt 0:03:08]} 30. Rxa6 {[%emt 0:00:36]} Rc3 {[%emt 0:00:34]} 31. Kf1 {[%emt 0:01:41]} Bg4 {[%emt 0:01:15]} 32. Ke1 {[%emt 0:00:18]} Rd3 {[%emt 0:00:40]} 33. R6a2 {[%emt 0:01:00]} Rdxd4 {[%emt 0:02:09]} 34. exd4 {[%emt 0:00:04]} Rxd4 {[%emt 0:00:04]} 35. Rd2 {[%emt 0:01:09]} Re4+ {[%emt 0:00:24]} 36. Kf1 {[%emt 0:00:02]} d4 {[%emt 0:04:28]} 37. Kg2 {[%emt 0:00:28]} Be6 {[%emt 0:00:03]} 38. Ra8+ {[%emt 0:01:17]} Kg7 {[%emt 0:00:08]} 39. Rd8 {[%emt 0:00:15]} Bxb3 {[%emt 0:00:12]} 40. R8xd4 {[%emt 0:00:21]} Rxd4 {[%emt 0:01:03]} 41. Rxd4 {[%emt 0:00:03]} Bc4 {[%emt 0:00:06]} 42. Kf3 {[%emt 0:00:43]} Kf6 {[%emt 0:00:15]} 43. Ke3 {[%emt 0:00:36]} h5 {[%emt 0:00:54]} 44. Re4 {[%emt 0:00:59]} Bd5 {[%emt 0:01:00]} 45. Rb4 {[%emt 0:00:19]} Bc4 {[%emt 0:00:05]} 46. Kd4 {[%emt 0:00:21]} Kf5 {[%emt 0:00:24]} 47. f3 {[%emt 0:00:26]} h4 {[%emt 0:00:48]} 48. Rb1 {[%emt 0:00:37]} hxg3 {[%emt 0:00:10]} 49. hxg3 {[%emt 0:00:02]} Be2 {[%emt 0:01:22]} 50. Rb3 {[%emt 0:00:10]} Bc4 {[%emt 0:00:12]} 51. Re3 {[%emt 0:00:17]} Be6 {[%emt 0:00:45]} 52. Re5+ {[%emt 0:00:06]} Kf6 {[%emt 0:00:02]} 53. Rxb5 {[%emt 0:00:11]} Ba2 {[%emt 0:00:19]} 54. g4 {[%emt 0:00:33]} Be6 {[%emt 0:00:03]} 55. g5+ {[%emt 0:00:15]} Kg7 {[%emt 0:00:57]} 56. Rb6 {[%emt 0:00:22]} Ba2 {[%emt 0:00:17]} 57. f4 {[%emt 0:00:49]} Kg8 {[%emt 0:00:30]} 58. Rb2 {[%emt 0:02:28]} Be6 {[%emt 0:00:05]} 59. Re2 {[%emt 0:00:56]} Bb3 {[%emt 0:00:22]} 60. Ke5 {[%emt 0:00:41]} Kg7 {[%emt 0:00:04]} 61. Rd2 {[%emt 0:00:20]} Be6 {[%emt 0:00:29]} 62. Rc2 {[%emt 0:00:27]} Bb3 {[%emt 0:00:14]} 63. Rc6 {[%emt 0:00:15]} Ba2 {[%emt 0:00:10]} 64. Kd4 {[%emt 0:00:49]} Kg8 {[%emt 0:00:38]} 65. Rd6 {[%emt 0:00:32]} Kg7 {[%emt 0:00:25]} 66. Rb6 {[%emt 0:00:15]} Kg8 {[%emt 0:00:19]} 67. Rb2 {[%emt 0:01:02]} Be6 {[%emt 0:00:03]} 68. Ke5 {[%emt 0:00:18]} Kg7 {[%emt 0:00:04]} 69. Rb6 {[%emt 0:00:16]} Ba2 {[%emt 0:00:16]} 70. f5 {[%emt 0:00:03]} gxf5 {[%emt 0:00:04]} 71. Kxf5 {[%emt 0:00:30]} Be6+ {[%emt 0:00:13]} 72. Kf4 {[%emt 0:00:10]} Kg6 {[%emt 0:00:07]} 73. Rd6 {[%emt 0:00:30]} Kh5 {[%emt 0:01:35]} 74. Rd8 {[%emt 0:01:15]} Kg6 {[%emt 0:00:05]} 75. Rd2 {[%emt 0:00:17]} Kg7 {[%emt 0:00:56]} 76. Ke5 {[%emt 0:00:48]} Kg6 {[%emt 0:00:13]} 77. Rg2 {[%emt 0:00:03]} Bb3 {[%emt 0:00:33]} 78. Rb2 {[%emt 0:00:42]} Be6 {[%emt 0:00:20]} 79. Kf4 {[%emt 0:00:06]} Kg7 {[%emt 0:00:16]} 80. Kg3 {[%emt 0:00:14]} Bd5 {[%emt 0:01:39]} 81. Rf2 {[%emt 0:00:31]} Bb3 {[%emt 0:00:19]} 82. Kh4 {[%emt 0:00:13]} Kg6 {[%emt 0:00:45]} 83. Rf6+ {[%emt 0:00:55]} Kg7 {[%emt 0:00:08]} 84. Rd6 {[%emt 0:00:12]} Bc4 {[%emt 0:00:24]} 85. Kg4 {[%emt 0:00:42]} Be2+ {[%emt 0:01:08]} 86. Kf5 {[%emt 0:00:14]} Bc4 {[%emt 0:00:28]} 87. g6 {[%emt 0:01:44]} Be6+ {[%emt 0:01:16]} 88. Kg5 {[%emt 0:00:31]} f6+ {[%emt 0:00:57]} 89. Kf4 {[%emt 0:00:15]} Bb3 {[%emt 0:00:03]} 90. Kf5 {[%emt 0:00:44]} Bc2+ {[%emt 0:00:06]} 91. Ke6 {[%emt 0:00:12]} Bxg6 {[%emt 0:00:35]} 92. Rd7+ {[%emt 0:00:02]} Kh8 {[%emt 0:00:39]} 93. Kxf6 {[%emt 0:00:13]} Bh7 {[%emt 0:00:48]} 94. Rg7 {[%emt 0:01:35]} Bc2 {[%emt 0:01:27]} 95. Rg3 {[%emt 0:00:26]} Bb1 {[%emt 0:00:46]} 96. Rg2 {[%emt 0:00:33]} Bd3 {[%emt 0:00:14]} 97. Rd2 {[%emt 0:00:16]} Be4 {[%emt 0:01:13]} 98. Kf7 {[%emt 0:00:43]} Bb1 {[%emt 0:00:30]} 99. Rb2 {[%emt 0:00:43]} Bd3 {[%emt 0:00:09]} 100. Rb8+ {[%emt 0:00:12]} Kh7 {[%emt 0:00:07]} 101. Rb4 {[%emt 0:00:11]} Kh8 {[%emt 0:01:09]} 102. Rh4+ {[%emt 0:00:28]} Bh7 {[%emt 0:00:06]} 103. Rxh7+ {[%emt 0:00:08]} Kxh7 {[%emt 0:06:06]} 1/2-1/2

[Event "Bruges Masters 2019"]
[Site "Bruges"]
[Date "2019.08.11"]
[Round "2.12"]
[White "Clijsen, Mark"]
[Black "Jonkman, Harmen"]
[Result "1/2-1/2"]
[ECO "D00"]
[WhiteElo "2171"]
[BlackElo "2394"]
[Annotator "NA"]
[PlyCount "84"]
[EventDate "2019.08.11"]
[EventType "swiss"]
[EventCountry "BEL"]
[SourceTitle "playchess.com"]
[Source "ChessBase"]
[SourceQuality "1"]
[TimeControl "5400+30"]

1. d4 {[%emt 0:00:00]} d5 {[%emt 0:00:00]} 2. Bg5 {[%emt 0:00:00]} c5 {[%emt 0:00:58]} 3. dxc5 {[%emt 0:02:18]} f6 {[%emt 0:00:47]} 4. Bd2 {[%emt 0:05:29]} a5 {[%emt 0:02:50]} 5. Nc3 {[%emt 0:06:18]} e5 {[%emt 0:10:03]} 6. e4 {[%emt 0:08:22]} d4 $18 {[%emt 0:02:06]} 7. Na4 {[%emt 0:03:59]} Be6 {[%emt 0:11:45]} 8. c3 {[%emt 0:10:05]} Ne7 {[%emt 0:23:35]} 9. cxd4 {[%emt 0:13:15]} exd4 {[%emt 0:01:09]} 10. Bb5+ {[%emt 0:06:34]} Nec6 {[%emt 0:00:36]} 11. Nf3 {[%emt 0:01:57]} Be7 {[%emt 0:00:38]} 12. O-O {[%emt 0:02:47]} O-O {[%emt 0:00:22]} 13. Bf4 {[%emt 0:01:44]} f5 {[%emt 0:09:49]} 14. exf5 {[%emt 0:08:32]} Rxf5 {[%emt 0:01:39]} 15. Bxb8 {[%emt 0:03:16]} Rxb8 {[%emt 0:00:40]} 16. Bxc6 {[%emt 0:02:41]} bxc6 {[%emt 0:00:06]} 17. Nxd4 {[%emt 0:01:29]} Rd5 {[%emt 0:05:39]} 18. Nxe6 {[%emt 0:00:58]} Rxd1 {[%emt 0:00:08]} 19. Nxd8 {[%emt 0:00:08]} Rdxd8 {[%emt 0:00:09]} 20. Rad1 {[%emt 0:03:09]} Kf7 {[%emt 0:00:12]} 21. b3 {[%emt 0:04:15]} h5 {[%emt 0:02:00]} 22. g3 {[%emt 0:01:08]} Bf6 {[%emt 0:03:19]} 23. Nb6 {[%emt 0:01:37]} Rd4 {[%emt 0:02:43]} 24. Rxd4 {[%emt 0:01:55]} Bxd4 {[%emt 0:00:02]} 25. Rd1 {[%emt 0:00:19]} Bxc5 {[%emt 0:01:16]} 26. Nd7 {[%emt 0:00:27]} Rb5 {[%emt 0:00:47]} 27. a4 {[%emt 0:01:00]} Bxf2+ {[%emt 0:00:14]} 28. Kxf2 {[%emt 0:00:07]} Rxb3 {[%emt 0:00:04]} 29. Ne5+ {[%emt 0:00:55]} Ke6 {[%emt 0:01:13]} 30. Nxc6 {[%emt 0:00:11]} Rb2+ {[%emt 0:00:04]} 31. Kf3 {[%emt 0:02:03]} Rxh2 {[%emt 0:00:15]} 32. Ra1 {[%emt 0:01:12]} h4 {[%emt 0:02:23]} 33. gxh4 {[%emt 0:00:13]} Rxh4 {[%emt 0:00:03]} 34. Nxa5 {[%emt 0:00:09]} Kd5 {[%emt 0:00:06]} 35. Nb7 {[%emt 0:03:39]} Kc6 {[%emt 0:04:31]} 36. Nd8+ {[%emt 0:00:10]} Kb6 {[%emt 0:00:14]} 37. a5+ {[%emt 0:00:54]} Ka6 {[%emt 0:00:18]} 38. Ne6 {[%emt 0:01:57]} Rc4 {[%emt 0:01:16]} 39. Ke3 {[%emt 0:01:05]} Rc6 {[%emt 0:00:12]} 40. Nxg7 {[%emt 0:00:13]} Rc5 {[%emt 0:00:05]} 41. Ke4 {[%emt 0:00:06]} Rxa5 {[%emt 0:00:07]} 42. Rxa5+ {[%emt 0:00:02]} Kxa5 {[%emt 0:16:37]} 1/2-1/2

[Event "Bruges Masters 2019"]
[Site "Bruges"]
[Date "2019.08.12"]
[Round "3.4"]
[White "De Jong, Migchiel"]
[Black "Cornelisse, John"]
[Result "0-1"]
[ECO "A13"]
[WhiteElo "2345"]
[BlackElo "2180"]
[Annotator "ChessBase"]
[PlyCount "130"]
[EventDate "2019.08.11"]
[EventType "swiss"]
[EventCountry "BEL"]
[SourceTitle "playchess.com"]
[Source "ChessBase"]
[SourceQuality "1"]
[TimeControl "5400+30"]

1. Nf3 {[%emt 0:00:00]} Nf6 {[%emt 0:00:01]} 2. c4 {[%emt 0:00:00]} e6 {[%emt 0:00:26]} 3. g3 {[%emt 0:00:20]} d5 {[%emt 0:00:56]} 4. Bg2 {[%emt 0:00:18]} dxc4 {[%emt 0:02:53]} 5. Qa4+ {[%emt 0:03:59]} Bd7 {[%emt 0:07:02]} 6. Qxc4 {[%emt 0:00:14]} c5 {[%emt 0:02:16]} 7. Ne5 {[%emt 0:02:32]} Qc8 {[%emt 0:02:46]} 8. Nxd7 {[%emt 0:03:11]} Qxd7 {[%emt 0:01:35]} 9. d3 {[%emt 0:01:29]} Nc6 {[%emt 0:03:01]} 10. Nd2 {[%emt 0:00:59]} Rc8 {[%emt 0:04:47]} 11. Nf3 {[%emt 0:00:57]} Be7 {[%emt 0:01:52]} 12. O-O {[%emt 0:00:13]} O-O {[%emt 0:01:41]} 13. Bd2 {[%emt 0:01:14]} Nd5 {[%emt 0:06:50]} 14. Rfc1 {[%emt 0:01:06]} Bf6 {[%emt 0:03:50]} 15. Rab1 {[%emt 0:01:42]} h6 {[%emt 0:03:35]} 16. Qg4 {[%emt 0:01:53]} Ne5 {[%emt 0:03:28]} 17. Nxe5 {[%emt 0:00:27]} Bxe5 {[%emt 0:00:03]} 18. a3 {[%emt 0:05:50]} Nf6 {[%emt 0:02:34]} 19. Qf3 {[%emt 0:00:38]} Nd5 {[%emt 0:06:36]} 20. Rc2 {[%emt 0:02:27]} b6 {[%emt 0:02:21]} 21. Rbc1 {[%emt 0:01:14]} Ne7 {[%emt 0:02:17]} 22. Qb7 {[%emt 0:02:05]} Rc7 {[%emt 0:02:07]} 23. Qe4 {[%emt 0:01:45]} Bd6 {[%emt 0:05:24]} 24. b4 {[%emt 0:08:12]} Nd5 {[%emt 0:02:09]} 25. Qg4 {[%emt 0:02:16]} Nf6 {[%emt 0:01:43]} 26. Qf3 {[%emt 0:00:11]} Rfc8 {[%emt 0:03:59]} 27. d4 {[%emt 0:13:46]} cxd4 {[%emt 0:03:39]} 28. Rxc7 {[%emt 0:00:49]} Rxc7 {[%emt 0:00:05]} 29. Bxh6 {[%emt 0:03:59]} gxh6 {[%emt 0:01:14]} 30. Rxc7 {[%emt 0:00:08]} Qxc7 {[%emt 0:00:04]} 31. Qxf6 {[%emt 0:00:07]} Bf8 {[%emt 0:00:42]} 32. Qxd4 {[%emt 0:01:43]} Qc1+ {[%emt 0:00:40]} 33. Bf1 {[%emt 0:00:08]} Qxa3 {[%emt 0:00:07]} 34. b5 {[%emt 0:00:42]} Qc5 {[%emt 0:01:04]} 35. Qg4+ {[%emt 0:00:48]} Qg5 {[%emt 0:01:51]} 36. Qa4 {[%emt 0:00:12]} Qe7 {[%emt 0:00:03]} 37. e3 {[%emt 0:00:15]} Qa3 {[%emt 0:00:23]} 38. Qg4+ {[%emt 0:00:39]} Bg7 {[%emt 0:00:13]} 39. Qe4 {[%emt 0:00:14]} Qa1 {[%emt 0:01:20]} 40. Kg2 {[%emt 0:00:12]} Qa2 {[%emt 0:00:40]} 41. Bc4 {[%emt 0:00:25]} Qa1 {[%emt 0:00:30]} 42. Qa8+ {[%emt 0:01:02]} Bf8 {[%emt 0:00:22]} 43. Qe4 {[%emt 0:01:57]} Bg7 {[%emt 0:00:10]} 44. Bd3 {[%emt 0:00:35]} Qa2 {[%emt 0:02:34]} 45. Qa8+ {[%emt 0:00:33]} Bf8 {[%emt 0:00:04]} 46. Be4 {[%emt 0:00:13]} Kg7 {[%emt 0:00:58]} 47. Qb8 {[%emt 0:02:01]} Qb2 {[%emt 0:00:55]} 48. Bc6 {[%emt 0:00:45]} Bc5 {[%emt 0:00:23]} 49. Qf4 {[%emt 0:00:40]} Qf6 {[%emt 0:00:22]} 50. Qg4+ {[%emt 0:01:15]} Kf8 {[%emt 0:01:09]} 51. h4 {[%emt 0:00:29]} Qb2 {[%emt 0:00:55]} 52. Qf3 {[%emt 0:02:56]} Kg7 {[%emt 0:00:19]} 53. g4 {[%emt 0:03:01]} Be7 {[%emt 0:01:28]} 54. Qg3 {[%emt 0:01:42]} Qf6 {[%emt 0:01:18]} 55. Kh3 {[%emt 0:00:12]} Bc5 {[%emt 0:02:13]} 56. Be4 {[%emt 0:00:40]} Qd8 {[%emt 0:01:05]} 57. g5 {[%emt 0:00:42]} hxg5 {[%emt 0:00:05]} 58. hxg5 {[%emt 0:00:07]} Bd6 {[%emt 0:00:23]} 59. Qg4 {[%emt 0:02:30]} Qh8+ {[%emt 0:01:01]} 60. Kg2 {[%emt 0:00:08]} Qh2+ {[%emt 0:00:05]} 61. Kf1 {[%emt 0:00:25]} Qe5 {[%emt 0:00:23]} 62. Bd3 {[%emt 0:03:01]} Qd5 {[%emt 0:02:07]} 63. Ke2 {[%emt 0:03:16]} Qa2+ {[%emt 0:00:13]} 64. Kf3 {[%emt 0:01:03]} Qd5+ {[%emt 0:00:05]} 65. Be4 {[%emt 0:00:18]} Qd1+ {[%emt 0:00:04]} 0-1

[Event "Bruges Masters 2019"]
[Site "Bruges"]
[Date "2019.08.12"]
[Round "3.5"]
[White "Goudriaan, Etienne"]
[Black "Du, Chunhui"]
[Result "0-1"]
[ECO "A19"]
[WhiteElo "2341"]
[BlackElo "2137"]
[Annotator "ChessBase"]
[PlyCount "90"]
[EventDate "2019.08.11"]
[EventType "swiss"]
[EventCountry "BEL"]
[SourceTitle "playchess.com"]
[Source "ChessBase"]
[SourceQuality "1"]
[TimeControl "5400+30"]

1. c4 {[%emt 0:00:00]} Nf6 {[%emt 0:00:00]} 2. Nc3 {[%emt 0:00:14]} e6 {[%emt 0:01:32]} 3. e4 {[%emt 0:00:05]} c5 {[%emt 0:12:33]} 4. g3 {[%emt 0:06:11]} Nc6 {[%emt 0:02:46]} 5. Bg2 {[%emt 0:00:12]} d5 {[%emt 0:01:31]} 6. cxd5 {[%emt 0:07:17]} exd5 {[%emt 0:00:57]} 7. exd5 {[%emt 0:00:05]} Nb4 {[%emt 0:00:14]} 8. Nge2 {[%emt 0:02:06]} Bf5 {[%emt 0:04:39]} 9. Qa4+ {[%emt 0:16:34]} Bd7 {[%emt 0:00:12]} 10. Qb3 {[%emt 0:00:50]} c4 {[%emt 0:00:20]} 11. Qxc4 {[%emt 0:02:53]} Nc2+ {[%emt 0:04:58]} 12. Kd1 {[%emt 0:00:05]} Nxa1 {[%emt 0:00:04]} 13. Re1 {[%emt 0:01:27]} Qb6 {[%emt 0:05:01]} 14. d4 {[%emt 0:13:52]} Bd6 {[%emt 0:02:18]} 15. Qd3 {[%emt 0:04:12]} O-O {[%emt 0:04:01]} 16. Qb1 {[%emt 0:00:43]} Rfe8 {[%emt 0:00:48]} 17. Qxa1 {[%emt 0:01:08]} Bb4 {[%emt 0:11:17]} 18. Be3 {[%emt 0:01:54]} Ng4 {[%emt 0:01:12]} 19. a3 {[%emt 0:02:17]} Rxe3 {[%emt 0:02:22]} 20. axb4 {[%emt 0:00:56]} Nxf2+ {[%emt 0:00:25]} 21. Kd2 {[%emt 0:00:05]} Rae8 {[%emt 0:00:56]} 22. Rf1 {[%emt 0:01:20]} Nd3 {[%emt 0:07:34]} 23. Be4 {[%emt 0:10:45]} R3xe4 {[%emt 0:01:34]} 24. Nxe4 {[%emt 0:00:35]} Rxe4 {[%emt 0:00:01]} 25. Kxd3 {[%emt 0:00:35]} Qg6 {[%emt 0:15:24]} 26. Kd2 {[%emt 0:01:35]} Bb5 {[%emt 0:00:51]} 27. Rf2 {[%emt 0:01:01]} Rxe2+ {[%emt 0:00:15]} 28. Rxe2 {[%emt 0:00:16]} Qd3+ {[%emt 0:00:03]} 29. Kc1 {[%emt 0:00:06]} Qxe2 {[%emt 0:00:05]} 30. Qxa7 {[%emt 0:00:05]} h6 {[%emt 0:00:45]} 31. Qxb7 {[%emt 0:00:49]} Bd3 {[%emt 0:00:27]} 32. Qc8+ {[%emt 0:00:05]} Kh7 {[%emt 0:00:00]} 33. Qc3 {[%emt 0:00:08]} Bb5 {[%emt 0:06:03]} 34. d6 {[%emt 0:04:33]} Kg6 {[%emt 0:01:25]} 35. b3 {[%emt 0:03:32]} Qxh2 {[%emt 0:01:25]} 36. Qe3 {[%emt 0:01:20]} Qh1+ {[%emt 0:00:32]} 37. Kb2 {[%emt 0:00:20]} Qd5 {[%emt 0:00:18]} 38. Qf4 {[%emt 0:01:51]} f6 {[%emt 0:00:51]} 39. Kc3 {[%emt 0:01:52]} Kf7 {[%emt 0:00:35]} 40. Qg4 {[%emt 0:01:06]} h5 {[%emt 0:02:08]} 41. Qh3 {[%emt 0:01:56]} Qf3+ {[%emt 0:01:14]} 42. Kb2 {[%emt 0:01:35]} Qg4 {[%emt 0:00:57]} 43. Qh1 {[%emt 0:00:04]} Qxd4+ {[%emt 0:00:05]} 44. Ka3 {[%emt 0:00:02]} Kg6 {[%emt 0:00:45]} 45. Qb7 {[%emt 0:01:02]} Qa1# {[%emt 0:00:24]} 0-1